bitfinex/quotes_BTCUSD_20250410
["timestamp","ask_amount","ask_price","bid_price","bid_amount"]
[1744270431438,0.012272,81485.0,81484.0,0.0001685]
[1744270433859,0.103772,81485.0,81484.0,0.0001685]
[1744270434059,0.443772,81485.0,81484.0,0.0001685]
[1744270434668,0.843772,81485.0,81484.0,0.0001685]
[1744270435922,1.08475841,81485.0,81484.0,0.0001685]
[1744270436193,0.97281053,81485.0,81484.0,0.0001685]
[1744270436313,1.04644053,81485.0,81484.0,0.0001685]
[1744270438381,1.29188353,81485.0,81484.0,0.0001685]
[1744270439166,1.00619971,81485.0,81484.0,0.0001685]
[1744270439759,0.997715,81485.0,81484.0,0.0001685]
[1744270439966,1.044215,81485.0,81484.0,0.0001685]
[1744270441643,1.092915,81485.0,81484.0,0.0001685]
[1744270445719,1.10139432,81485.0,81484.0,0.0001685]
[1744270446062,1.23648899,81485.0,81484.0,0.0001685]
[1744270447087,0.61229085,81474.0,81473.0,2e-07]
[1744270447301,0.597757,81472.0,81471.0,0.0039602]
[1744270447508,0.74133099,81472.0,81471.0,3.98e-05]
[1744270447915,1.14133099,81472.0,81471.0,3.98e-05]
[1744270448622,1.14145869,81472.0,81471.0,3.98e-05]
[1744270449179,1.15389542,81472.0,81471.0,3.98e-05]
[1744270449562,1.16289008,81472.0,81471.0,3.98e-05]
[1744270451414,1.23652008,81472.0,81471.0,3.98e-05]
[1744270452658,1.2892113,81472.0,81471.0,3.98e-05]
[1744270453111,1.23652008,81472.0,81471.0,3.98e-05]
[1744270454566,0.331421,81461.0,81441.0,0.0041685]
[1744270454773,0.671421,81461.0,81460.0,1e-08]
[1744270454971,0.331437,81456.0,81455.0,0.00012851]
[1744270455398,0.731437,81456.0,81455.0,0.00012851]
[1744270455793,0.73991632,81456.0,81455.0,0.00012851]
[1744270456265,1.20047014,81456.0,81455.0,0.00012851]
[1744270456409,1.00628632,81456.0,81455.0,0.00012851]
[1744270465527,0.012277,81452.0,81431.0,0.0001685]
[1744270465716,0.012277,81452.0,81410.0,0.17524148]
[1744270465717,0.0062,81362.0,81361.0,0.258108]
[1744270466026,0.0062,81362.0,81352.0,8e-05]
[1744270466027,0.245838,81355.0,81352.0,8e-05]
[1744270466151,0.0186445,81362.0,81352.0,8e-05]
[1744270466354,0.25813,81354.0,81352.0,8e-05]
[1744270466578,0.012291,81360.0,81352.0,8e-05]
[1744270466579,0.245827,81358.0,81352.0,8e-05]
[1744270466834,0.245832,81357.0,81352.0,8e-05]
[1744270467061,0.0062,81362.0,81360.0,0.245818]
[1744270467187,0.0062,81362.0,81361.0,0.13284382]
[1744270467387,0.0062,81362.0,81361.0,0.37716382]
[1744270467585,0.0062,81362.0,81361.0,0.36495382]
[1744270467854,0.26440823,81362.0,81361.0,0.2444]
[1744270468006,0.00630423,81362.0,81361.0,0.2444]
[1744270468228,0.012291,81358.0,81353.0,5.0]
[1744270468421,0.012291,81357.0,81353.0,5.0]
[1744270468624,0.012291,81356.0,81353.0,5.0]
[1744270468831,0.012291,81354.0,81353.0,5.0]
[1744270469033,0.47284482,81354.0,81353.0,5.0]
[1744270469251,0.89533963,81354.0,81353.0,5.0]
[1744270469441,0.92112547,81354.0,81353.0,5.0]
[1744270469844,0.92954134,81354.0,81353.0,5.0]
[1744270470336,0.91500049,81354.0,81353.0,3.89056984]
[1744270470491,1.05317134,81354.0,81353.0,0.30152684]
[1744270470687,1.00817134,81354.0,81353.0,0.15719842]
[1744270470888,1.05817134,81354.0,81353.0,0.15719842]
[1744270471093,0.598134,81353.0,81352.0,8e-05]
[1744270471258,0.35954085,81353.0,81352.0,8e-05]
[1744270471463,0.48009467,81353.0,81352.0,8e-05]
[1744270471659,0.12055382,81353.0,81352.0,8e-05]
[1744270471889,0.12055382,81353.0,81347.0,0.00602863]
[1744270471890,0.37868782,81353.0,81347.0,0.00602863]
[1744270472090,0.37868782,81353.0,81294.0,0.08353994]
[1744270472091,0.352296,81322.0,81294.0,0.08353994]
[1744270472411,0.585993,81303.0,81294.0,0.08353994]
[1744270472633,0.36683985,81301.0,81294.0,0.08353994]
[1744270472808,0.46055382,81301.0,81294.0,0.08353994]
[1744270473234,0.86055382,81301.0,81294.0,0.08353994]
[1744270473408,0.86068109,81301.0,81294.0,0.08353994]
[1744270473607,0.8831759,81301.0,81294.0,0.08353994]
[1744270473809,0.02262208,81301.0,81300.0,0.1021]
[1744270474009,0.02262208,81301.0,81300.0,0.14526449]
[1744270474478,0.02262208,81301.0,81300.0,0.27811831]
[1744270474683,0.00012727,81301.0,81300.0,0.27811831]
[1744270474867,0.00012727,81301.0,81300.0,0.14526449]
[1744270475012,0.00012727,81301.0,81300.0,0.15756449]
[1744270475676,0.00012727,81301.0,81300.0,0.27811831]
[1744270475941,0.02230358,81311.0,81300.0,0.12043259]
[1744270476159,0.0965,81366.0,81300.0,0.12043259]
[1744270476160,0.00904235,81354.0,81329.0,0.245912]
[1744270476361,0.12055382,81353.0,81333.0,0.245902]
[1744270476475,0.4,81352.0,81333.0,0.245902]
[1744270476677,0.4,81352.0,81340.0,0.245881]
[1744270476678,0.12055382,81351.0,81340.0,0.245881]
[1744270476909,0.4,81352.0,81340.0,0.259461]
[1744270477105,0.4,81352.0,81341.0,0.245878]
[1744270477368,0.4,81352.0,81343.0,0.245869]
[1744270477688,0.00012805,81351.0,81343.0,0.245869]
[1744270477896,0.00012805,81351.0,81347.0,0.245855]
[1744270478178,0.12055382,81350.0,81333.0,0.245902]
[1744270478346,0.12055382,81350.0,81338.0,0.245885]
[1744270478913,0.00012805,81351.0,81338.0,0.012294]
[1744270479131,0.00012805,81351.0,81339.0,0.058694]
[1744270479344,0.00012805,81351.0,81348.0,0.245854]
[1744270479543,0.00012805,81351.0,81339.0,0.0464]
[1744270479676,0.12055382,81350.0,81339.0,0.0464]
[1744270479880,0.00012805,81351.0,81348.0,0.245856]
[1744270480226,0.00012805,81351.0,81348.0,0.24325817]
[1744270480560,0.00012805,81351.0,81343.0,0.245872]
[1744270480775,0.00012805,81351.0,81342.0,0.245873]
[1744270480977,0.12055382,81350.0,81317.0,0.012297]
[1744270481106,0.12055382,81350.0,81323.0,0.24593]
[1744270481107,0.35454085,81349.0,81323.0,0.24593]
[1744270481466,0.35454085,81347.0,81334.0,0.0495]
[1744270481689,0.08,81342.0,81334.0,0.0495]
[1744270481809,0.12055382,81341.0,81334.0,0.0495]
[1744270482268,0.12055382,81341.0,81323.0,0.0495]
[1744270482473,0.245895,81336.0,81310.0,0.245972]
[1744270482697,0.245957,81315.0,81300.0,0.12043259]
[1744270482822,0.34,81313.0,81300.0,0.12043259]
[1744270483015,0.52055382,81312.0,81306.0,0.245983]
[1744270483286,0.52055382,81312.0,81300.0,0.12043259]
[1744270483458,0.4,81312.0,81301.0,0.12043259]
[1744270484011,0.4,81312.0,81303.0,0.24599]
[1744270484204,0.4,81312.0,81301.0,0.12085859]
[1744270484485,0.12055382,81311.0,81301.0,0.000426]
[1744270486763,0.4,81310.0,81301.0,0.000426]
[1744270486921,0.12055382,81309.0,81301.0,0.000426]
[1744270487535,0.4,81308.0,81301.0,0.000426]
[1744270487899,0.12055382,81307.0,81301.0,0.30295581]
[1744270488099,0.4,81308.0,81301.0,0.05695681]
[1744270488574,0.12055382,81307.0,81301.0,0.000426]
[1744270489302,0.41229858,81308.0,81301.0,0.000426]
[1744270489508,0.4,81308.0,81301.0,0.000426]
[1744270489718,0.99561305,81300.0,81299.0,0.258303]
[1744270489919,0.99603972,81300.0,81297.0,0.246009]
[1744270490207,0.99603972,81300.0,81299.0,0.258305]
[1744270490755,0.94923972,81300.0,81299.0,0.42615882]
[1744270490984,0.90243972,81300.0,81299.0,0.42615882]
[1744270491183,0.012293,81341.0,81299.0,0.42615882]
[1744270491184,0.4,81337.0,81322.0,0.012296]
[1744270491346,0.4,81337.0,81328.0,0.012295]
[1744270491699,0.00012803,81339.0,81328.0,0.012295]
[1744270491921,0.00012803,81339.0,81328.0,0.258211]
[1744270492158,0.00012803,81339.0,81329.0,0.0516434]
[1744270492301,0.012294,81337.0,81312.0,0.245965]
[1744270492500,0.12055382,81338.0,81300.0,0.12043259]
[1744270492501,0.01118721,81336.0,81314.0,0.258256]
[1744270492738,0.01118721,81336.0,81318.0,0.012297]
[1744270492899,0.01118721,81336.0,81318.0,0.258242]
[1744270493100,0.41118721,81336.0,81319.0,0.0774743]
[1744270493506,0.01118721,81335.0,81319.0,0.3234173]
[1744270494108,0.01118721,81335.0,81319.0,0.0897713]
[1744270494309,0.01118721,81335.0,81328.0,0.012295]
[1744270494504,0.01118721,81334.0,81331.0,0.245908]
[1744270494708,0.01118721,81334.0,81332.0,0.245903]
[1744270494901,0.01118721,81334.0,81330.0,0.245905]
[1744270495146,0.01118721,81334.0,81331.0,0.245906]
[1744270495285,0.01118721,81334.0,81332.0,0.0774617]
[1744270495487,0.01118721,81333.0,81332.0,0.3356607]
[1744270495692,0.01118721,81333.0,81332.0,0.0774617]
[1744270496136,0.01118721,81333.0,81332.0,0.0897567]
[1744270496337,0.01118721,81333.0,81332.0,0.0774617]
[1744270496547,0.01118721,81333.0,81332.0,0.022861]
[1744270497349,0.01118721,81333.0,81332.0,0.035156]
[1744270497847,0.00012803,81339.0,81337.0,0.24589]
[1744270498050,0.00012803,81339.0,81338.0,0.268748]
[1744270498467,0.00012803,81339.0,81338.0,0.245887]
[1744270498673,0.00012803,81339.0,81338.0,0.28155008]
[1744270499409,0.00012803,81339.0,81337.0,0.24589]
[1744270500075,0.00012803,81339.0,81337.0,0.258184]
[1744270500477,0.00012803,81339.0,81337.0,0.24589]
[1744270501307,0.00012803,81339.0,81337.0,0.258184]
[1744270501685,0.00012803,81339.0,81338.0,0.012294]
[1744270501884,0.00012803,81339.0,81338.0,0.11581498]
[1744270502298,0.00012803,81339.0,81338.0,0.2363688]
[1744270503772,0.00012803,81339.0,81337.0,0.24589]
[1744270503935,0.00012803,81339.0,81338.0,0.012294]
[1744270504138,0.00012803,81339.0,81337.0,0.24589]
[1744270504343,0.00012803,81339.0,81337.0,0.258184]
[1744270504812,0.00012803,81339.0,81338.0,0.012294]
[1744270504952,0.00012803,81339.0,81338.0,0.13272659]
[1744270505149,0.00012803,81339.0,81338.0,0.13284782]
[1744270505355,0.00012803,81339.0,81337.0,0.24589]
[1744270505599,0.00012803,81339.0,81338.0,0.012294]
[1744270506799,0.00012803,81339.0,81337.0,0.258184]
[1744270507004,0.00012803,81339.0,81338.0,0.012294]
[1744270507405,0.00012803,81339.0,81338.0,0.13272659]
[1744270507598,0.00012803,81339.0,81338.0,0.37861359]
[1744270508003,0.00012803,81339.0,81338.0,0.258181]
[1744270508420,0.07363,81338.0,81298.0,1.26548]
[1744270508612,0.2971681,81310.0,81298.0,1.26548]
[1744270508971,0.2971681,81310.0,81291.0,0.004]
[1744270508972,0.012298,81311.0,81291.0,0.016301]
[1744270509084,0.012298,81311.0,81291.0,0.004]
[1744270509085,0.40846837,81309.0,81291.0,0.004]
[1744270509286,0.01129452,81308.0,81295.0,0.00875399]
[1744270509494,0.00846837,81307.0,81295.0,0.01121391]
[1744270509714,0.24599,81304.0,81295.0,0.01121391]
[1744270509915,0.245993,81303.0,81291.0,0.004]
[1744270510116,0.258317,81295.0,81291.0,0.004]
[1744270510316,0.246006,81299.0,81291.0,0.004]
[1744270510515,0.01976289,81298.0,81291.0,0.004]
[1744270510761,0.246015,81296.0,81291.0,0.004]
[1744270510971,0.01976289,81298.0,81291.0,0.004]
[1744270511367,0.01976289,81297.0,81291.0,0.004]
[1744270512089,0.00846837,81296.0,81291.0,0.004]
[1744270512724,0.01976289,81295.0,81291.0,0.004]
[1744270514694,0.00846837,81295.0,81292.0,0.258324]
[1744270515115,0.00846837,81295.0,81293.0,0.258323]
[1744270515318,0.40846837,81311.0,81294.0,0.32955894]
[1744270515501,0.01126687,81310.0,81295.0,0.38741169]
[1744270515661,0.01126687,81310.0,81295.0,0.63342769]
[1744270515858,0.08,81306.0,81295.0,0.38741169]
[1744270516080,0.40846837,81305.0,81304.0,0.012299]
[1744270516303,0.40846837,81305.0,81302.0,0.258292]
[1744270516304,0.00846837,81305.0,81302.0,0.258292]
[1744270516506,0.00846837,81305.0,81303.0,0.2730502]
[1744270516907,0.00846837,81305.0,81304.0,0.13531258]
[1744270517109,0.4,81319.0,81312.0,0.012298]
[1744270517332,0.4,81319.0,81315.0,0.245955]
[1744270517922,0.245907,81332.0,81316.0,0.245951]
[1744270518097,0.00012801,81331.0,81317.0,0.0774762]
[1744270518302,0.00012801,81331.0,81321.0,0.012296]
[1744270518499,0.24603901,81331.0,81317.0,0.0774762]
[1744270518699,0.00012801,81331.0,81317.0,0.24595]
[1744270518901,0.00012801,81331.0,81329.0,0.258207]
[1744270519102,0.00012801,81331.0,81326.0,0.012296]
[1744270519305,0.00012801,81331.0,81328.0,0.245916]
[1744270519504,0.00012801,81331.0,81300.0,0.3021681]
[1744270519732,0.012298,81309.0,81295.0,0.08625169]
[1744270519908,0.012298,81309.0,81271.0,0.0001686]
[1744270519909,0.05,81270.0,81257.0,0.246129]
[1744270520106,0.05,81278.0,81261.0,0.012306]
[1744270520305,0.05,81283.0,81274.0,0.012304]
[1744270520622,0.05,81283.0,81273.0,0.012304]
[1744270520623,0.05,81280.0,81275.0,0.12055382]
[1744270521126,0.05,81281.0,81275.0,0.12055382]
[1744270521350,0.05,81280.0,81276.0,0.06373368]
[1744270521561,0.05,81281.0,81276.0,0.06373368]
[1744270521764,0.05,81285.0,81277.0,0.36662482]
[1744270521965,0.05,81288.0,81282.0,0.012302]
[1744270522203,0.05,81287.0,81283.0,0.12055382]
[1744270522378,0.05,81290.0,81283.0,0.12055382]
[1744270522856,0.05,81294.0,81283.0,0.12055382]
[1744270523097,0.05,81290.0,81284.0,0.08956458]
[1744270523775,0.05,81291.0,81287.0,0.24604]
[1744270523990,0.05,81291.0,81285.0,0.258349]
[1744270524202,0.05,81291.0,81287.0,0.012302]
[1744270524346,0.05,81291.0,81286.0,0.258345]
[1744270524550,0.245991,81304.0,81287.0,0.04930674]
[1744270524551,0.05,81290.0,81287.0,0.04930674]
[1744270525179,0.05,81291.0,81290.0,0.012301]
[1744270525380,0.30112,81321.0,81287.0,0.18216256]
[1744270525381,0.05,81293.0,81287.0,0.18216256]
[1744270525706,0.05,81293.0,81288.0,0.246038]
[1744270525910,0.05,81294.0,81287.0,0.12055382]
[1744270526206,0.05,81285.0,81279.0,0.012303]
[1744270526405,0.05,81285.0,81282.0,0.258355]
[1744270526547,0.05,81285.0,81283.0,0.028296]
[1744270526753,0.05,81290.0,81283.0,0.274348]
[1744270526948,0.05,81286.0,81283.0,0.028296]
[1744270527176,0.05,81294.0,81287.0,0.012302]
[1744270527372,0.05,81294.0,81288.0,0.012301]
[1744270527600,0.012298,81313.0,81288.0,0.012301]
[1744270527601,0.05,81302.0,81294.0,0.012301]
[1744270527798,0.585953,81317.0,81294.0,0.012301]
[1744270527799,0.05,81300.0,81298.0,0.258307]
[1744270528017,0.05,81300.0,81298.0,0.246008]
[1744270528183,0.245954,81316.0,81297.0,0.0123]
[1744270528378,0.05,81300.0,81296.0,0.246007]
[1744270528636,0.05,81298.0,81296.0,0.3222797]
[1744270528827,0.05,81298.0,81296.0,0.0762657]
[1744270529075,0.05,81298.0,81292.0,0.246026]
[1744270529215,0.05,81298.0,81293.0,0.246022]
[1744270529411,0.05,81298.0,81289.0,0.1514303]
[1744270529642,0.05,81298.0,81287.0,0.24604]
[1744270529978,0.05,81298.0,81292.0,0.246025]
[1744270530564,0.05,81298.0,81291.0,0.25833]
[1744270530942,0.05,81298.0,81292.0,0.246026]
[1744270531260,0.012297,81320.0,81300.0,0.0123]
[1744270531488,0.012296,81322.0,81299.0,0.0123]
[1744270531489,0.05,81304.0,81299.0,0.0123]
[1744270531690,0.05,81304.0,81300.0,0.0123]
[1744270531898,0.05,81304.0,81300.0,0.258301]
[1744270532073,0.05,81304.0,81300.0,0.246001]
[1744270532249,0.05,81303.0,81301.0,0.0516607]
[1744270532668,0.05,81304.0,81301.0,0.0516607]
[1744270533047,0.05,81303.0,81301.0,0.0516607]
[1744270533449,0.05,81303.0,81301.0,0.2976597]
[1744270533707,0.05,81303.0,81302.0,0.245994]
[1744270533868,0.05,81303.0,81302.0,0.08265547]
[1744270534267,0.05,81303.0,81302.0,0.32865147]
[1744270534934,0.05,81303.0,81298.0,0.246007]
[1744270535114,0.05,81303.0,81299.0,0.246004]
[1744270535560,0.05,81303.0,81300.0,0.246002]
[1744270535689,0.05,81303.0,81300.0,0.246001]
[1744270535893,0.047,81318.0,81307.0,0.245981]
[1744270536265,0.05,81300.0,81289.0,0.246035]
[1744270536465,0.05,81300.0,81290.0,0.24645667]
[1744270536667,0.05,81298.0,81290.0,0.24645667]
[1744270536823,0.05,81298.0,81291.0,0.0229241]
[1744270536824,0.05,81295.0,81291.0,0.0229241]
[1744270537021,0.05868757,81294.0,81291.0,0.0229241]
[1744270537494,0.05868757,81294.0,81290.0,0.00042667]
[1744270537654,0.05,81294.0,81290.0,0.00042667]
[1744270537853,0.00868447,81293.0,81290.0,0.00042667]
[1744270539000,0.00868447,81293.0,81292.0,0.246026]
[1744270539194,0.05,81294.0,81291.0,0.02297037]
[1744270539363,0.05,81294.0,81292.0,0.02297037]
[1744270539556,0.05,81294.0,81292.0,0.01537736]
[1744270539851,0.05,81294.0,81291.0,0.246028]
[1744270540062,0.05,81294.0,81291.0,0.0229697]
[1744270540470,0.05,81294.0,81293.0,0.246023]
[1744270540801,0.05,81294.0,81292.0,0.246026]
[1744270540983,0.05,81294.0,81290.0,0.24645667]
[1744270541178,0.05,81294.0,81291.0,0.0229697]
[1744270541544,0.05,81294.0,81290.0,0.24645867]
[1744270541751,0.00868447,81293.0,81290.0,0.30046691]
[1744270542126,0.05,81291.0,81290.0,0.00042667]
[1744270542687,0.05867825,81291.0,81290.0,0.00042667]
[1744270543086,0.05,81291.0,81290.0,0.00042667]
[1744270543502,0.05867825,81291.0,81290.0,0.00042667]
[1744270543703,0.05867825,81291.0,81290.0,0.02339637]
[1744270543982,0.05,81291.0,81290.0,0.02339637]
[1744270544385,0.05,81294.0,81290.0,0.05157061]
[1744270544644,0.05,81291.0,81290.0,0.05157061]
[1744270544799,0.0492,81306.0,81292.0,0.012301]
[1744270544999,0.05,81299.0,81295.0,0.246017]
[1744270545316,0.05,81299.0,81296.0,0.2812827]
[1744270545521,0.05848778,81305.0,81304.0,0.24599]
[1744270546260,0.05,81305.0,81304.0,0.0229697]
[1744270546390,0.05,81305.0,81304.0,0.2689597]
[1744270546862,0.05,81305.0,81304.0,0.24599]
[1744270547139,0.05,81304.0,81299.0,0.246003]
[1744270547374,0.05,81304.0,81300.0,0.246002]
[1744270547595,0.05,81304.0,81302.0,0.245996]
[1744270547788,0.05,81304.0,81303.0,0.3222535]
[1744270548005,0.05,81308.0,81303.0,0.0762605]
[1744270548209,0.05,81317.0,81316.0,0.245954]
[1744270548348,0.004,81319.0,81318.0,0.258245]
[1744270548542,0.004,81319.0,81318.0,0.3098952]
[1744270548991,0.004,81319.0,81318.0,0.33286397]
[1744270549401,0.004,81319.0,81318.0,0.28121377]
[1744270550498,0.004,81319.0,81318.0,0.26891677]
[1744270550902,0.004,81319.0,81318.0,0.28121377]
[1744270551912,0.004,81319.0,81318.0,0.40176759]
[1744270556325,0.004,81319.0,81318.0,0.44836759]
[1744270556523,0.004,81319.0,81318.0,0.56880018]
[1744270557705,0.004,81319.0,81318.0,0.61820018]
[1744270557916,0.004,81319.0,81318.0,1.03200018]
[1744270558115,0.0003374,81334.0,81318.0,1.03200018]
[1744270558116,0.0003374,81334.0,81333.0,0.258197]
[1744270558339,0.00046543,81334.0,81333.0,0.45621152]
[1744270558651,0.00046543,81334.0,81333.0,0.47918029]
[1744270558854,0.00046543,81334.0,81333.0,0.45621152]
[1744270559843,0.00024723,81347.0,81343.0,0.24587]
[1744270560243,0.00024723,81347.0,81344.0,0.245868]
[1744270560447,0.00024723,81347.0,81333.0,0.19801452]
[1744270560645,0.00024723,81347.0,81333.0,0.012295]
[1744270560646,0.05,81341.0,81333.0,0.012295]
[1744270560849,0.05,81341.0,81336.0,0.245892]
[1744270561436,0.05,81341.0,81337.0,0.245889]
[1744270562361,0.05,81341.0,81335.0,0.012294]
[1744270562362,0.05,81341.0,81336.0,0.012294]
[1744270562636,0.05,81345.0,81344.0,0.258162]
[1744270562878,0.05,81344.0,81339.0,0.245884]
[1744270563107,0.05,81344.0,81340.0,0.245879]
[1744270563343,0.00024723,81347.0,81346.0,0.258156]
[1744270563821,0.00024723,81347.0,81346.0,0.26061435]
[1744270564053,0.00024723,81347.0,81346.0,0.258156]
[1744270564605,0.00024723,81347.0,81341.0,0.0791749]
[1744270564849,0.00024723,81347.0,81344.0,0.245868]
[1744270565077,0.00024723,81347.0,81346.0,0.245863]
[1744270565764,0.00024723,81347.0,81346.0,0.38116824]
[1744270565996,0.00024723,81347.0,81346.0,0.36641682]
[1744270566238,0.00024723,81347.0,81342.0,0.012293]
[1744270566505,0.00024723,81347.0,81346.0,0.258156]
[1744270566768,0.00024723,81347.0,81346.0,0.49673529]
[1744270567009,0.00024723,81347.0,81346.0,0.49427705]
[1744270569107,0.00024723,81347.0,81346.0,0.54107705]
[1744270570703,0.00024723,81347.0,81346.0,0.49427705]
[1744270571207,0.00024723,81347.0,81346.0,0.37870982]
[1744270571416,0.00024723,81347.0,81346.0,0.12055382]
[1744270572363,0.00024723,81347.0,81346.0,0.13284682]
[1744270573307,0.00024723,81347.0,81346.0,0.13530484]
[1744270573531,0.00024723,81347.0,81346.0,0.13284682]
[1744270573749,0.00024723,81347.0,81346.0,0.2223508]
[1744270574242,0.00024723,81347.0,81346.0,0.4682138]
[1744270576038,0.00024723,81347.0,81346.0,0.9283138]
[1744270576548,2.3e-07,81347.0,81346.0,0.99665465]
[1744270577018,2.3e-07,81347.0,81346.0,0.9771138]
[1744270577742,2.3e-07,81347.0,81346.0,0.9821138]
[1744270577933,6.3e-07,81350.0,81349.0,0.017292]
[1744270578141,6.3e-07,81350.0,81349.0,0.20817401]
[1744270579384,6.3e-07,81350.0,81349.0,0.63897227]
[1744270579587,6.3e-07,81350.0,81349.0,0.63651486]
[1744270580088,6.3e-07,81350.0,81349.0,0.88236886]
[1744270582072,6.3e-07,81350.0,81349.0,0.86282801]
[1744270582476,6.3e-07,81350.0,81349.0,0.53435382]
[1744270582598,6.3e-07,81350.0,81349.0,0.79249982]
[1744270583249,6.3e-07,81350.0,81349.0,0.12055382]
[1744270583454,6.3e-07,81350.0,81337.0,0.4138]
[1744270583455,0.245856,81349.0,81337.0,0.4138]
[1744270583654,0.44680063,81350.0,81338.0,0.44807032]
[1744270583809,0.00593736,81348.0,81340.0,0.24588]
[1744270584013,0.00594046,81349.0,81340.0,0.245881]
[1744270584212,0.012293,81346.0,81338.0,0.18989132]
[1744270584419,0.05,81339.0,81336.0,0.26728]
[1744270584719,0.05,81348.0,81344.0,0.258162]
[1744270584919,0.245828,81358.0,81341.0,0.012293]
[1744270584920,6.3e-07,81350.0,81347.0,0.245858]
[1744270585263,6.3e-07,81350.0,81349.0,0.258146]
[1744270585409,6.3e-07,81350.0,81349.0,0.37869982]
[1744270585603,6.3e-07,81350.0,81349.0,0.4927871]
[1744270587605,6.3e-07,81350.0,81349.0,1.2465871]
[1744270587809,0.0062,81362.0,81361.0,0.258108]
[1744270588035,0.0062,81362.0,81361.0,2.31475921]
[1744270588036,0.00632798,81362.0,81361.0,2.31475921]
[1744270588236,0.00632798,81362.0,81361.0,2.31230182]
[1744270588422,0.00632798,81362.0,81361.0,2.43273441]
[1744270595129,0.00632798,81362.0,81361.0,2.4450441]
[1744270595701,0.00632798,81362.0,81361.0,2.43273441]
[1744270596902,0.00632798,81362.0,81361.0,2.31230182]
[1744270598404,0.00632798,81362.0,81361.0,1.89850182]
[1744270598560,0.00632798,81362.0,81361.0,1.64039382]
[1744270598970,0.00632798,81362.0,81361.0,1.88621182]
[1744270600719,0.00632798,81362.0,81361.0,1.89850182]
[1744270600903,0.00632798,81362.0,81361.0,2.01893441]
[1744270601285,0.00632798,81362.0,81361.0,1.89850182]
[1744270602392,0.00732798,81362.0,81361.0,1.89850182]
[1744270603419,0.00732798,81362.0,81361.0,1.89110182]
[1744270605254,0.00632798,81362.0,81361.0,1.89110182]
[1744270605461,0.00732798,81362.0,81361.0,1.89110182]
[1744270605665,0.00732798,81362.0,81361.0,2.01153441]
[1744270605873,0.00732798,81362.0,81361.0,1.63299382]
[1744270606018,0.00732798,81362.0,81361.0,1.89110182]
[1744270606216,0.00832798,81362.0,81361.0,1.26504]
[1744270606416,0.31163198,81362.0,81361.0,1.26504]
[1744270606642,0.31163198,81362.0,81330.0,0.22322938]
[1744270606643,0.0452,81342.0,81333.0,1.26488]
[1744270606860,0.0452,81342.0,81334.0,0.12043259]
[1744270606861,0.245878,81341.0,81334.0,0.12043259]
[1744270607034,0.0452,81342.0,81334.0,0.36633059]
[1744270607235,0.0452,81342.0,81334.0,0.12043259]
[1744270607495,0.0452,81342.0,81334.0,0.36633059]
[1744270607704,0.0452,81342.0,81336.0,0.245892]
[1744270607882,0.0452,81342.0,81337.0,0.12043259]
[1744270608526,0.0452,81342.0,81334.0,0.12043259]
[1744270608664,0.05,81335.0,81333.0,1.26488]
[1744270609273,0.0471,81336.0,81316.0,0.012297]
[1744270609274,0.05,81326.0,81316.0,0.012297]
[1744270609513,0.245901,81334.0,81314.0,0.24112]
[1744270609514,0.05,81321.0,81318.0,0.245945]
[1744270609708,0.05,81324.0,81323.0,0.012296]
[1744270610073,0.012294,81340.0,81323.0,0.012296]
[1744270610074,0.0452,81342.0,81341.0,0.012293]
[1744270610255,0.001,81335.0,81330.0,0.012295]
[1744270610484,0.001,81335.0,81330.0,0.12055382]
[1744270610758,0.05,81336.0,81331.0,0.03787668]
[1744270610971,0.05,81336.0,81327.0,0.012296]
[1744270611182,0.05,81336.0,81328.0,0.36647082]
[1744270611390,0.05,81336.0,81329.0,0.012295]
[1744270611610,0.05,81337.0,81332.0,0.012295]
[1744270611834,0.05,81340.0,81335.0,0.012294]
[1744270611976,0.05,81337.0,81336.0,0.01451428]
[1744270612567,0.012293,81347.0,81336.0,0.01451428]
[1744270612793,0.05,81337.0,81336.0,0.01451428]
[1744270613035,0.05,81337.0,81310.0,0.17599788]
[1744270613036,0.308241,81319.0,81310.0,0.0001685]
[1744270613193,0.062297,81319.0,81310.0,0.0001685]
[1744270613817,0.462297,81319.0,81310.0,0.0001685]
[1744270614113,0.45,81319.0,81310.0,0.0001685]
[1744270614683,0.012294,81334.0,81319.0,0.012297]
[1744270614880,0.05,81326.0,81323.0,0.258228]
[1744270615095,0.05,81328.0,81324.0,0.078713]
[1744270615339,0.05,81328.0,81327.0,0.258216]
[1744270615666,0.05,81330.0,81329.0,0.258209]
[1744270616000,0.002,81326.0,81322.0,0.245934]
[1744270616360,0.002,81326.0,81324.0,0.245928]
[1744270616512,0.002,81326.0,81324.0,0.37877782]
[1744270616710,0.002,81326.0,81325.0,0.09075398]
[1744270616936,0.05,81328.0,81325.0,0.33667898]
[1744270617139,0.052,81330.0,81326.0,0.245922]
[1744270617498,0.05,81328.0,81326.0,0.245923]
[1744270617701,0.002,81330.0,81327.0,0.13284982]
[1744270617945,0.052,81330.0,81328.0,0.05064188]
[1744270618139,0.05,81329.0,81328.0,0.1711957]
[1744270618375,0.002,81330.0,81329.0,0.258209]
[1744270618567,0.052,81330.0,81329.0,0.245914]
[1744270618969,0.291576,81342.0,81332.0,0.245903]
[1744270619304,0.05,81334.0,81333.0,0.09458167]
[1744270620384,0.05,81319.0,81315.0,0.2412]
[1744270621336,0.45,81319.0,81315.0,0.2412]
[1744270621548,0.462297,81319.0,81315.0,0.2412]
[1744270621669,0.509097,81319.0,81315.0,0.2412]
[1744270622273,0.510097,81319.0,81315.0,0.2412]
[1744270622523,0.0978,81319.0,81315.0,0.2412]
[1744270622728,0.051,81319.0,81315.0,0.2412]
[1744270623085,0.051,81319.0,81318.0,0.24607603]
[1744270623086,0.001,81319.0,81318.0,0.24607603]
[1744270623303,0.051,81319.0,81318.0,0.00012803]
[1744270623716,0.309241,81319.0,81318.0,0.00012803]
[1744270623908,0.3672171,81319.0,81318.0,3.758e-05]
[1744270624107,0.743241,81319.0,81318.0,3.758e-05]
[1744270624361,0.648258,81314.0,81313.0,0.0001685]
[1744270624490,0.76881182,81314.0,81313.0,0.0001685]